[Event "Kadettallsvenskan 2018, sodra kvalet"]
[Site "Vegagatan 20, Gothenburg, Sweden"]
[Date "2018.04.15"]
[Round "5.9"]
[White "Carlander-Strandang, Love"]
[Black "Johansson, William"]
[Result "0-1"]
[TimeControl "45 minutes for the whole game + 10 seconds per move from move one."]
[WhiteFideId "1739689"]
[BlackFideId "1744070"]
[WhiteElo "1339"]
[BlackElo "1462"]

1. e4 {[%clk 00:45:19]} e5 {[%clk 00:45:10]} {[%emt 00:00:11]} 2. Nf3 {[%clk
00:45:24]} {[%emt 00:00:05]} Nc6 {[%clk 00:45:18]} {[%emt 00:00:01]} 3. Bc4
{[%clk 00:45:21]} {[%emt 00:00:13]} Bc5 {[%clk 00:45:16]} {[%emt 00:00:12]} 4.
Nc3 {[%clk 00:44:59]} {[%emt 00:00:33]} d6 {[%clk 00:44:49]} {[%emt 00:00:37]}
5. d3 {[%clk 00:44:50]} {[%emt 00:00:19]} Bg4 {[%clk 00:44:09]} {[%emt
00:00:49]} 6. h3 {[%clk 00:44:30]} {[%emt 00:00:30]} Bh5 {[%clk 00:44:17]}
{[%emt 00:00:02]} 7. g4 {[%clk 00:43:43]} {[%emt 00:00:58]} Bg6 {[%clk
00:44:21]} {[%emt 00:00:05]} 8. Bg5 {[%clk 00:43:44]} {[%emt 00:00:09]} f6
{[%clk 00:44:10]} {[%emt 00:00:21]} 9. Bh4 {[%clk 00:43:33]} {[%emt 00:00:22]}
Nge7 {[%clk 00:43:17]} {[%emt 00:01:03]} 10. Nd5 {[%clk 00:43:07]} {[%emt
00:00:37]} Nxd5 {[%clk 00:42:41]} {[%emt 00:00:45]} 11. Bxd5 {[%clk 00:43:10]}
{[%emt 00:00:07]} Qd7 {[%clk 00:42:08]} {[%emt 00:00:42]} 12. c3 {[%clk
00:42:53]} {[%emt 00:00:28]} a5 {[%clk 00:41:30]} {[%emt 00:00:48]} 13. d4
{[%clk 00:41:45]} {[%emt 00:01:18]} exd4 {[%clk 00:41:07]} {[%emt 00:00:33]} 14.
cxd4 {[%clk 00:41:47]} {[%emt 00:00:08]} Bb4+ {[%clk 00:41:05]} {[%emt
00:00:12]} 15. Ke2 {[%clk 00:41:21]} {[%emt 00:00:36]} a4 {[%clk 00:38:37]}
{[%emt 00:02:39]} 16. Nd2 {[%clk 00:38:52]} {[%emt 00:02:39]} Nxd4+ {[%clk
00:36:42]} {[%emt 00:02:05]} 17. Ke3 {[%clk 00:37:29]} {[%emt 00:01:33]} c5
{[%clk 00:34:08]} {[%emt 00:02:43]} 18. a3 {[%clk 00:37:07]} {[%emt 00:00:33]}
Bxd2+ {[%clk 00:32:21]} {[%emt 00:01:57]} 19. Qxd2 {[%clk 00:36:07]} {[%emt
00:01:10]} Bf7 {[%clk 00:31:39]} {[%emt 00:00:51]} 20. Bxf7+ {[%clk 00:35:20]}
{[%emt 00:00:58]} Qxf7 {[%emt 00:01:07]} 21. Rab1 {[%clk 00:33:48]} {[%emt
00:00:43]} O-O {[%clk 00:30:16]} {[%emt 00:01:34]} 22. Bg3 {[%clk 00:32:32]}
{[%emt 00:01:27]} d5 {[%clk 00:28:43]} {[%emt 00:01:44]} 23. Bd6 {[%clk
00:31:32]} {[%emt 00:01:10]} Rfc8 {[%clk 00:25:56]} {[%emt 00:02:57]} 24. Bxc5
{[%clk 00:30:48]} {[%emt 00:00:54]} Nb3 {[%clk 00:24:40]} {[%emt 00:01:26]} 25.
Qxd5 {[%clk 00:29:20]} {[%emt 00:01:38]} Qxd5 {[%clk 00:24:36]} {[%emt
00:00:14]} 26. exd5 {[%clk 00:29:25]} {[%emt 00:00:05]} Rxc5 {[%clk 00:24:43]}
{[%emt 00:00:03]} 27. Rhd1 {[%clk 00:29:14]} {[%emt 00:00:21]} Rd8 {[%clk
00:23:11]} {[%emt 00:01:41]} 28. d6 {[%emt 00:01:18]} Re5+ {[%clk 00:22:29]}
{[%emt 00:00:05]} 29. Kf4 {[%clk 00:28:34]} {[%emt 00:00:31]} g5+ {[%clk
00:22:27]} {[%emt 00:00:11]} 30. Kf3 {[%clk 00:28:24]} {[%emt 00:00:20]} Re6
{[%clk 00:22:14]} {[%emt 00:00:22]} 31. d7 {[%clk 00:27:23]} {[%emt 00:01:12]}
Re7 {[%clk 00:22:13]} {[%emt 00:00:12]} 32. Rd6 {[%clk 00:27:25]} {[%emt
00:00:08]} Rexd7 {[%clk 00:22:11]} {[%emt 00:00:11]} 33. Rxf6 {[%clk 00:27:27]}
{[%emt 00:00:08]} Nd2+ {[%clk 00:22:18]} {[%emt 00:00:03]} 34. Kg2 {[%clk
00:27:29]} {[%emt 00:00:08]} Nxb1 {[%clk 00:22:25]} {[%emt 00:00:03]} 35. Rf5
{[%clk 00:27:33]} {[%emt 00:00:05]} Rd5 {[%clk 00:22:15]} {[%emt 00:00:20]} 36.
Rf6 {[%clk 00:27:30]} {[%emt 00:00:13]} R8d6 {[%clk 00:22:18]} {[%emt
00:00:07]} 37. Rf3 {[%clk 00:27:36]} {[%emt 00:00:04]} Nd2 {[%clk 00:22:23]}
{[%emt 00:00:04]} 38. Re3 {[%clk 00:27:31]} {[%emt 00:00:15]} Kf7 {[%clk
00:22:11]} {[%emt 00:00:22]} 39. Rc3 {[%clk 00:27:24]} {[%emt 00:00:18]} Rc6
{[%clk 00:22:17]} {[%emt 00:00:04]} 40. Re3 {[%clk 00:27:29]} {[%emt 00:00:04]}
Nc4 {[%clk 00:22:16]} {[%emt 00:00:10]} 41. Rf3+ {[%clk 00:27:29]} {[%emt
00:00:12]} Rf6 {[%clk 00:22:18]} {[%emt 00:00:07]} 42. Rc3 {[%clk 00:27:24]}
{[%emt 00:00:15]} Nxb2 {[%emt 00:00:04]} 43. Rc7+ {[%clk 00:27:29]} {[%emt
00:00:03]} Kg6 {[%clk 00:22:33]} {[%emt 00:00:03]} 44. Rxb7 {[%clk 00:27:36]}
{[%emt 00:00:03]} Nd3 {[%clk 00:22:41]} {[%emt 00:00:02]} 45. f3 {[%clk
00:27:28]} {[%emt 00:00:18]} Ne5 {[%clk 00:22:42]} {[%emt 00:00:09]} 46. Rb4
{[%clk 00:27:26]} {[%emt 00:00:13]} Rd2+ {[%clk 00:22:48]} {[%emt 00:00:04]} 47.
Kf1 {[%clk 00:27:24]} {[%emt 00:00:12]} Rxf3+ {[%clk 00:22:56]} {[%emt
00:00:02]} 48. Ke1 {[%clk 00:27:33]} Ra2 {[%clk 00:22:54]} {[%emt 00:00:13]} 49.
Rb6+ {[%clk 00:27:24]} {[%emt 00:00:19]} Rf6 {[%clk 00:22:48]} {[%emt
00:00:15]} 50. Rb5 {[%clk 00:27:12]} {[%emt 00:00:22]} Nd3+ {[%clk 00:22:57]}
{[%emt 00:00:02]} 51. Rc5 {[%emt 00:00:11]} 0-1

[Event "Kadettallsvenskan 2018, sodra kvalet"]
[Site "Vegagatan 20, Gothenburg, Sweden"]
[Date "2018.04.15"]
[Round "6.1"]
[White "Nguyen, Gabriel"]
[Black "Lindholm, Gustav"]
[Result "1-0"]
[TimeControl "45 minutes for the whole game + 10 seconds per move from move one."]
[WhiteFideId "1720791"]
[BlackFideId "1736515"]
[WhiteElo "2024"]
[BlackElo "1803"]

1. d4 {[%clk 00:44:35]} {[%emt 00:00:03]} d5 {[%clk 00:45:14]} {[%emt
00:00:06]} 2. c4 {[%clk 00:44:41]} {[%emt 00:00:04]} c6 {[%clk 00:45:20]}
{[%emt 00:00:04]} 3. Nc3 {[%clk 00:44:30]} {[%emt 00:00:21]} Nf6 {[%clk
00:45:18]} {[%emt 00:00:12]} 4. Nf3 {[%clk 00:44:09]} {[%emt 00:00:32]} dxc4
{[%clk 00:45:03]} {[%emt 00:00:24]} 5. a4 {[%clk 00:44:08]} {[%emt 00:00:11]}
Bf5 {[%clk 00:44:59]} {[%emt 00:00:14]} 6. Ne5 {[%clk 00:44:11]} {[%emt
00:00:08]} e6 {[%clk 00:44:27]} {[%emt 00:00:41]} 7. Nxc4 {[%clk 00:42:47]}
{[%emt 00:01:34]} Nbd7 {[%clk 00:43:18]} {[%emt 00:01:19]} 8. f3 {[%clk
00:42:19]} {[%emt 00:00:39]} Bb4 {[%clk 00:41:25]} {[%emt 00:02:01]} 9. e4
{[%clk 00:41:38]} {[%emt 00:00:52]} Bg6 {[%clk 00:38:09]} {[%emt 00:03:27]} 10.
Be2 {[%clk 00:35:51]} {[%emt 00:05:57]} O-O {[%clk 00:36:56]} {[%emt 00:01:23]}
11. O-O {[%clk 00:35:39]} {[%emt 00:00:23]} Nb6 {[%clk 00:34:03]} {[%emt
00:03:02]} 12. Be3 {[%clk 00:30:48]} {[%emt 00:04:59]} Rc8 {[%clk 00:32:17]}
{[%emt 00:01:57]} 13. Qb3 {[%clk 00:26:36]} {[%emt 00:04:23]} Nxc4 {[%clk
00:30:40]} {[%emt 00:01:48]} 14. Bxc4 {[%clk 00:26:02]} {[%emt 00:00:44]} a5
{[%clk 00:28:38]} {[%emt 00:02:12]} 15. Rad1 {[%clk 00:23:18]} {[%emt
00:02:54]} Qc7 {[%clk 00:27:35]} {[%emt 00:01:12]} 16. Rc1 {[%clk 00:22:01]}
{[%emt 00:01:29]} Rfd8 {[%clk 00:22:51]} {[%emt 00:04:53]} 17. Rfd1 {[%clk
00:21:35]} {[%emt 00:00:36]} h6 {[%clk 00:16:26]} {[%emt 00:06:35]} 18. Bf2
{[%clk 00:19:30]} {[%emt 00:02:13]} Bh7 {[%clk 00:09:38]} {[%emt 00:07:00]} 19.
Bf1 {[%clk 00:16:36]} {[%emt 00:03:03]} Qe7 {[%clk 00:08:19]} {[%emt 00:01:30]}
20. Bh4 {[%clk 00:13:37]} {[%emt 00:03:09]} g5 {[%clk 00:07:09]} {[%emt
00:01:19]} 21. Bf2 {[%clk 00:13:42]} {[%emt 00:00:05]} Kh8 {[%clk 00:04:57]}
{[%emt 00:02:23]} 22. Kh1 {[%clk 00:13:45]} {[%emt 00:00:06]} h5 {[%clk
00:02:52]} {[%emt 00:02:16]} 23. Na2 {[%clk 00:10:50]} {[%emt 00:03:05]} g4
{[%clk 00:01:27]} {[%emt 00:01:35]} 24. Bh4 {[%clk 00:10:44]} {[%emt 00:00:16]}
e5 {[%clk 00:00:40]} {[%emt 00:00:57]} 25. Nxb4 {[%clk 00:10:32]} {[%emt
00:00:22]} axb4 {[%clk 00:00:47]} {[%emt 00:00:03]} 26. dxe5 {[%clk 00:08:46]}
{[%emt 00:01:57]} Qxe5 {[%clk 00:00:37]} {[%emt 00:00:20]} 27. Rxd8 {[%clk
00:08:52]} {[%emt 00:00:04]} Rxd8 {[%clk 00:00:44]} {[%emt 00:00:03]} 28. Qxf7
{[%clk 00:08:48]} {[%emt 00:00:15]} Rd6 {[%clk 00:00:19]} {[%emt 00:00:36]} 29.
Bg3 {[%clk 00:08:28]} {[%emt 00:00:29]} Qxb2 {[%clk 00:00:23]} {[%emt
00:00:06]} 30. Bxd6 {[%clk 00:08:10]} {[%emt 00:00:28]} gxf3 {[%clk 00:00:14]}
{[%emt 00:00:19]} 31. Qf8 {[%clk 00:07:41]} {[%emt 00:00:38]} Ng8 {[%clk
00:00:16]} {[%emt 00:00:08]} 32. Qxf3 {[%clk 00:06:05]} {[%emt 00:01:46]} Nf6
{[%clk 00:00:14]} {[%emt 00:00:13]} 33. Be7 {[%clk 00:05:02]} {[%emt 00:01:12]}
Ng4 {[%clk 00:00:14]} {[%emt 00:00:11]} 34. Rc5 {[%clk 00:03:39]} {[%emt
00:01:32]} Nf2 {[%clk 00:00:14]} {[%emt 00:00:11]} 35. Kg1 {[%clk 00:03:48]}
{[%emt 00:00:01]} Ng4 {[%clk 00:00:19]} {[%emt 00:00:05]} 36. Qf8 {[%clk
00:03:45]} {[%emt 00:00:12]} 1-0

[Event "Kadettallsvenskan 2018, sodra kvalet"]
[Site "Vegagatan 20, Gothenburg, Sweden"]
[Date "2018.04.15"]
[Round "6.2"]
[White "Strom-Engdahl, Alexander"]
[Black "Batra, Sahil"]
[Result "1-0"]
[TimeControl "45 minutes for the whole game + 10 seconds per move from move one."]
[WhiteFideId "1741586"]
[BlackFideId "1745158"]
[WhiteElo "1720"]
[BlackElo "1487"]

1. Nf3 {[%clk 00:45:18]} {[%emt 00:00:01]} d5 {[%clk 00:44:39]} {[%emt
00:00:42]} 2. g3 {[%clk 00:45:19]} {[%emt 00:00:08]} Nc6 {[%clk 00:43:56]}
{[%emt 00:00:53]} 3. d4 {[%clk 00:45:17]} {[%emt 00:00:12]} Nf6 {[%clk
00:43:45]} {[%emt 00:00:21]} 4. Bg2 {[%clk 00:44:56]} {[%emt 00:00:29]} Bf5
{[%clk 00:43:29]} {[%emt 00:00:27]} 5. O-O {[%clk 00:44:50]} {[%emt 00:00:15]}
e6 {[%clk 00:42:53]} {[%emt 00:00:46]} 6. Bg5 {[%clk 00:44:47]} {[%emt
00:00:12]} Be7 {[%clk 00:42:05]} {[%emt 00:01:00]} 7. Bxf6 {[%clk 00:44:29]}
{[%emt 00:00:28]} Bxf6 {[%clk 00:41:57]} {[%emt 00:00:18]} 8. a3 {[%clk
00:44:04]} {[%emt 00:00:35]} a5 {[%clk 00:41:00]} {[%emt 00:01:08]} 9. e3
{[%clk 00:43:42]} {[%emt 00:00:30]} O-O {[%clk 00:38:48]} {[%emt 00:02:22]} 10.
Nbd2 {[%clk 00:41:24]} {[%emt 00:02:26]} h6 {[%clk 00:36:06]} {[%emt 00:02:55]}
11. Rc1 {[%clk 00:40:57]} {[%emt 00:00:36]} b5 {[%clk 00:33:34]} {[%emt
00:02:43]} 12. Qe2 {[%clk 00:39:24]} {[%emt 00:01:41]} Rb8 {[%clk 00:33:11]}
{[%emt 00:00:34]} 13. Nb3 {[%clk 00:38:52]} {[%emt 00:00:42]} Be7 {[%clk
00:30:33]} {[%emt 00:02:49]} 14. Rfd1 {[%clk 00:34:16]} {[%emt 00:04:45]} Re8
{[%clk 00:27:18]} {[%emt 00:03:25]} 15. Qe1 {[%clk 00:32:44]} {[%emt 00:01:41]}
a4 {[%clk 00:25:31]} {[%emt 00:01:58]} 16. Nc5 {[%clk 00:30:53]} {[%emt
00:02:01]} Bxc5 {[%clk 00:22:46]} {[%emt 00:02:55]} 17. dxc5 {[%clk 00:30:18]}
{[%emt 00:00:45]} Qe7 {[%clk 00:19:36]} {[%emt 00:03:19]} 18. Nd4 {[%clk
00:30:18]} {[%emt 00:00:11]} Nxd4 {[%clk 00:13:48]} {[%emt 00:05:58]} 19. exd4
{[%clk 00:30:19]} {[%emt 00:00:08]} c6 {[%clk 00:12:52]} {[%emt 00:01:07]} 20.
Qd2 {[%clk 00:23:28]} {[%emt 00:07:01]} f6 {[%clk 00:11:51]} {[%emt 00:01:10]}
21. f4 {[%clk 00:19:41]} {[%emt 00:03:57]} Rbc8 {[%clk 00:10:32]} {[%emt
00:01:30]} 22. Re1 {[%clk 00:19:35]} {[%emt 00:00:16]} Qd7 {[%clk 00:08:29]}
{[%emt 00:02:13]} 23. Re3 {[%clk 00:18:43]} {[%emt 00:01:02]} Re7 {[%clk
00:07:58]} {[%emt 00:00:41]} 24. Rce1 {[%clk 00:18:41]} {[%emt 00:00:11]} Rce8
{[%clk 00:07:54]} {[%emt 00:00:15]} 25. Bf3 {[%clk 00:12:58]} {[%emt 00:05:52]}
Bg6 {[%clk 00:06:03]} {[%emt 00:02:02]} 26. Bg4 {[%clk 00:12:40]} {[%emt
00:00:28]} Kh7 {[%clk 00:04:29]} {[%emt 00:01:45]} 27. Qe2 {[%clk 00:12:24]}
{[%emt 00:00:26]} f5 {[%clk 00:03:48]} {[%emt 00:00:51]} 28. Bh5 {[%clk
00:11:43]} {[%emt 00:00:51]} Bxh5 {[%clk 00:03:20]} {[%emt 00:00:38]} 29. Qxh5
{[%clk 00:11:49]} {[%emt 00:00:03]} g6 {[%clk 00:02:17]} {[%emt 00:01:13]} 30.
Qh4 {[%clk 00:11:48]} {[%emt 00:00:09]} Kg7 {[%clk 00:02:13]} {[%emt 00:00:16]}
31. c3 {[%clk 00:11:30]} {[%emt 00:00:27]} Kf8 {[%clk 00:01:52]} {[%emt
00:00:31]} 32. Qf6+ {[%clk 00:11:02]} {[%emt 00:00:37]} Rf7 {[%clk 00:01:39]}
{[%emt 00:00:25]} 33. Qxg6 {[%clk 00:11:08]} {[%emt 00:00:04]} Rg7 {[%clk
00:01:20]} {[%emt 00:00:29]} 34. Qxh6 {[%clk 00:11:13]} {[%emt 00:00:04]} Kf7
{[%clk 00:01:15]} {[%emt 00:02:31]} 35. Qh5+ {[%clk 00:10:54]} {[%emt
00:00:27]} Rg6 {[%clk 00:01:17]} {[%emt 00:00:08]} 36. Kg2 {[%clk 00:09:33]}
{[%emt 00:01:31]} Kf6 {[%clk 00:01:13]} {[%emt 00:00:15]} 37. Qf3 {[%clk
00:09:23]} {[%emt 00:00:19]} Kf7 {[%clk 00:01:19]} {[%emt 00:00:04]} 38. Kf2
{[%clk 00:09:11]} {[%emt 00:00:21]} Kf6 {[%clk 00:01:26]} {[%emt 00:00:05]} 39.
Rh1 {[%clk 00:09:11]} {[%emt 00:00:09]} Kf7 {[%clk 00:01:32]} {[%emt 00:00:04]}
40. h4 {[%clk 00:09:06]} {[%emt 00:00:15]} Rh6 {[%clk 00:01:36]} {[%emt
00:00:07]} 41. Qg2 {[%clk 00:08:48]} {[%emt 00:00:28]} Rg8 {[%clk 00:01:42]}
{[%emt 00:00:04]} 42. Qh3 {[%clk 00:08:15]} {[%emt 00:00:42]} Rg4 {[%clk
00:01:48]} {[%emt 00:00:04]} 43. Qf1 {[%clk 00:08:16]} {[%emt 00:00:09]} Qd8
{[%clk 00:01:50]} {[%emt 00:00:09]} 44. Qe2 {[%clk 00:07:17]} {[%emt 00:01:08]}
Qf6 {[%clk 00:01:57]} {[%emt 00:00:03]} 45. Rf3 {[%clk 00:07:17]} {[%emt
00:00:10]} Ke7 {[%clk 00:01:53]} {[%emt 00:00:14]} 46. Qe5 {[%clk 00:07:25]}
{[%emt 00:00:02]} Qxe5 {[%clk 00:01:48]} {[%emt 00:00:15]} 47. fxe5 {[%clk
00:07:27]} {[%emt 00:00:08]} Kf7 {[%clk 00:01:56]} {[%emt 00:00:02]} 48. Rf4
{[%clk 00:07:35]} {[%emt 00:00:01]} Rg7 {[%clk 00:01:57]} {[%emt 00:00:09]} 49.
Kf3 {[%clk 00:07:39]} {[%emt 00:00:06]} Rhg6 {[%clk 00:01:56]} {[%emt
00:00:12]} 50. Rh3 {[%clk 00:07:43]} {[%emt 00:00:06]} Rh6 {[%clk 00:01:58]}
{[%emt 00:00:08]} 51. h5 {[%clk 00:07:38]} {[%emt 00:00:14]} Rg5 {[%clk
00:02:02]} {[%emt 00:00:06]} 52. g4 {[%clk 00:07:42]} {[%emt 00:00:06]} Ke7
{[%clk 00:01:54]} {[%emt 00:00:18]} 53. Rg3 {[%clk 00:07:15]} {[%emt 00:00:37]}
Rxg4 {[%clk 00:01:14]} {[%emt 00:00:50]} 54. Rgxg4 {[%clk 00:07:22]} {[%emt
00:00:03]} fxg4+ {[%clk 00:01:22]} {[%emt 00:00:02]} 55. Kxg4 {[%clk 00:07:31]}
{[%emt 00:00:01]} Ke8 {[%clk 00:01:27]} {[%emt 00:00:06]} 56. Rf6 {[%clk
00:07:36]} {[%emt 00:00:05]} Rh8 {[%clk 00:00:58]} {[%emt 00:00:39]} 57. Rxe6+
{[%clk 00:07:41]} {[%emt 00:00:05]} Kd7 {[%clk 00:01:07]} {[%emt 00:00:01]} 58.
Rd6+ {[%clk 00:07:46]} {[%emt 00:00:05]} Kc7 {[%clk 00:01:16]} {[%emt
00:00:01]} 59. Kg5 {[%clk 00:07:55]} Rg8+ {[%clk 00:01:24]} {[%emt 00:00:01]}
60. Rg6 {[%clk 00:08:05]} Rf8 {[%clk 00:01:25]} {[%emt 00:00:10]} 61. h6 {[%clk
00:08:13]} {[%emt 00:00:01]} Rf1 {[%clk 00:01:32]} {[%emt 00:00:03]} 62. h7
{[%clk 00:08:21]} {[%emt 00:00:03]} Rg1+ {[%clk 00:01:41]} 63. Kf6 {[%clk
00:08:30]} Rf1+ {[%clk 00:01:50]} {[%emt 00:00:01]} 64. Ke6 {[%clk 00:08:39]}
{[%emt 00:00:01]} Rh1 {[%clk 00:01:55]} {[%emt 00:00:05]} 65. Rg7+ {[%clk
00:08:45]} {[%emt 00:00:04]} Kb8 {[%clk 00:00:55]} {[%emt 00:01:10]} 66. Rg8+
{[%clk 00:08:54]} Ka7 {[%clk 00:01:04]} 67. h8=Q {[%clk 00:09:00]} {[%emt
00:00:05]} Rxh8 {[%clk 00:01:13]} {[%emt 00:00:02]} 68. Rxh8 {[%clk 00:09:08]}
{[%emt 00:00:02]} Ka6 {[%clk 00:01:22]} {[%emt 00:00:01]} 69. Kd6 {[%clk
00:09:15]} {[%emt 00:00:03]} Kb7 {[%clk 00:00:52]} {[%emt 00:00:40]} 70. Rh7+
{[%clk 00:09:23]} {[%emt 00:00:02]} Ka6 {[%clk 00:00:43]} {[%emt 00:00:19]} 71.
Rc7 {[%clk 00:09:19]} {[%emt 00:00:14]} Ka5 {[%clk 00:00:46]} {[%emt 00:00:07]}
72. Kxc6 {[%clk 00:09:25]} {[%emt 00:00:03]} Ka6 {[%clk 00:00:55]} {[%emt
00:00:02]} 73. Rd7 {[%clk 00:09:30]} {[%emt 00:00:05]} 1-0

[Event "Kadettallsvenskan 2018, sodra kvalet"]
[Site "Vegagatan 20, Gothenburg, Sweden"]
[Date "2018.04.15"]
[Round "6.3"]
[White "Sahlstrom, Alex"]
[Black "Ben Saeid, Aria"]
[Result "0-1"]
[TimeControl "45 minutes for the whole game + 10 seconds per move from move one."]
[WhiteFideId "1739590"]
[BlackFideId "1741691"]
[WhiteElo "1351"]
[BlackElo "1693"]

1. e4 {[%clk 00:44:43]} {[%emt 00:00:36]} e5 {[%clk 00:45:09]} {[%emt
00:00:12]} 2. Nf3 {[%clk 00:44:36]} {[%emt 00:00:18]} Nc6 {[%clk 00:45:13]}
{[%emt 00:00:05]} 3. Bc4 {[%clk 00:44:41]} {[%emt 00:00:05]} Bc5 {[%clk
00:45:19]} {[%emt 00:00:04]} 4. c3 {[%clk 00:44:32]} {[%emt 00:00:19]} Nf6
{[%clk 00:45:16]} {[%emt 00:00:13]} 5. d3 {[%clk 00:44:27]} {[%emt 00:00:15]}
O-O {[%clk 00:45:02]} {[%emt 00:00:23]} 6. O-O {[%clk 00:44:08]} {[%emt
00:00:29]} d6 {[%clk 00:44:42]} {[%emt 00:00:30]} 7. Bg5 {[%clk 00:43:14]}
{[%emt 00:01:04]} h6 {[%clk 00:44:33]} {[%emt 00:00:18]} 8. Bh4 {[%clk
00:42:59]} {[%emt 00:00:26]} Be6 {[%clk 00:43:56]} {[%emt 00:00:47]} 9. Nbd2
{[%clk 00:40:24]} {[%emt 00:02:45]} a6 {[%clk 00:42:12]} {[%emt 00:01:54]} 10.
Re1 {[%clk 00:34:25]} {[%emt 00:06:09]} b5 {[%clk 00:41:13]} {[%emt 00:01:08]}
11. Bb3 {[%clk 00:28:18]} {[%emt 00:06:17]} g5 {[%clk 00:40:24]} {[%emt
00:00:58]} 12. Nxg5 {[%clk 00:15:42]} {[%emt 00:12:47]} hxg5 {[%clk 00:37:27]}
{[%emt 00:03:07]} 13. Bxg5 {[%clk 00:15:42]} {[%emt 00:00:10]} Bg4 {[%clk
00:34:57]} {[%emt 00:02:40]} 14. Nf3 {[%clk 00:09:03]} {[%emt 00:06:50]} Na5
{[%clk 00:31:17]} {[%emt 00:03:50]} 15. Bc2 {[%clk 00:05:17]} {[%emt 00:03:56]}
Nb7 {[%clk 00:29:29]} {[%emt 00:01:57]} 16. d4 {[%clk 00:04:38]} {[%emt
00:00:50]} Ba7 {[%clk 00:28:06]} {[%emt 00:01:32]} 17. dxe5 {[%clk 00:04:20]}
{[%emt 00:00:28]} dxe5 {[%clk 00:25:36]} {[%emt 00:02:40]} 18. Qxd8 {[%clk
00:04:15]} {[%emt 00:00:15]} Raxd8 {[%clk 00:25:13]} {[%emt 00:00:33]} 19. Bxf6
{[%clk 00:04:16]} {[%emt 00:00:10]} Bxf3 {[%clk 00:24:36]} {[%emt 00:00:46]} 20.
Bxd8 {[%clk 00:04:09]} {[%emt 00:00:16]} Rxd8 {[%clk 00:24:35]} {[%emt
00:00:11]} 21. gxf3 {[%clk 00:03:33]} {[%emt 00:00:46]} Rd2 {[%clk 00:24:44]}
{[%emt 00:00:01]} 22. Bb3 {[%clk 00:01:56]} {[%emt 00:01:47]} Bxf2+ {[%clk
00:24:44]} {[%emt 00:00:10]} 23. Kf1 {[%clk 00:00:58]} {[%emt 00:01:08]} Bxe1
{[%clk 00:24:51]} {[%emt 00:00:02]} 24. Rxe1 {[%clk 00:01:06]} {[%emt
00:00:02]} Rxb2 {[%clk 00:25:00]} {[%emt 00:00:02]} 25. Re2 {[%clk 00:01:05]}
{[%emt 00:00:11]} Rb1+ {[%clk 00:24:36]} {[%emt 00:00:34]} 26. Re1 {[%clk
00:00:54]} {[%emt 00:00:22]} Rb2 {[%clk 00:24:40]} {[%emt 00:00:05]} 27. Re2
{[%clk 00:01:03]} {[%emt 00:00:01]} Rb1+ {[%clk 00:24:49]} {[%emt 00:00:01]} 28.
Re1 {[%clk 00:00:15]} {[%emt 00:00:57]} Rxe1+ {[%clk 00:24:55]} {[%emt
00:00:02]} 29. Kxe1 {[%clk 00:00:24]} {[%emt 00:00:03]} Nc5 {[%clk 00:25:04]}
{[%emt 00:00:01]} 30. Bc2 {[%clk 00:00:26]} {[%emt 00:00:08]} Kg7 {[%clk
00:25:02]} {[%emt 00:00:11]} 31. Kf2 {[%clk 00:00:23]} {[%emt 00:00:14]} Ne6
{[%clk 00:25:07]} {[%emt 00:00:05]} 32. Kg3 {[%clk 00:00:20]} {[%emt 00:00:14]}
Nf4 {[%clk 00:25:14]} {[%emt 00:00:02]} 33. a4 {[%clk 00:00:19]} {[%emt
00:00:11]} Ne2+ {[%clk 00:25:21]} {[%emt 00:00:03]} 34. Kg4 {[%clk 00:00:24]}
{[%emt 00:00:05]} Nxc3 {[%clk 00:25:19]} {[%emt 00:00:12]} 35. axb5 {[%clk
00:00:22]} {[%emt 00:00:11]} Nxb5 {[%clk 00:25:27]} {[%emt 00:00:02]} 36. Kf5
{[%clk 00:00:17]} {[%emt 00:00:16]} Nd4+ {[%clk 00:25:35]} {[%emt 00:00:01]} 37.
Kxe5 {[%clk 00:00:22]} {[%emt 00:00:05]} Nxc2 {[%clk 00:25:43]} {[%emt
00:00:02]} 38. Kd5 {[%clk 00:00:22]} {[%emt 00:00:10]} Ne1 {[%clk 00:25:50]}
{[%emt 00:00:03]} 39. f4 {[%clk 00:00:26]} {[%emt 00:00:06]} Nd3 {[%clk
00:25:56]} {[%emt 00:00:04]} 40. f5 {[%clk 00:00:31]} {[%emt 00:00:06]} Kf6
{[%clk 00:26:03]} {[%emt 00:00:03]} 41. h4 {[%clk 00:00:34]} {[%emt 00:00:08]}
a5 {[%clk 00:26:09]} {[%emt 00:00:04]} 42. Kc4 {[%clk 00:00:12]} {[%emt
00:00:32]} Nf2 {[%clk 00:26:02]} {[%emt 00:00:16]} 43. h5 {[%clk 00:00:11]}
{[%emt 00:00:12]} Nxe4 {[%clk 00:26:10]} {[%emt 00:00:02]} 0-1